Workbook

Sheet 供求总体人数
A1: 阳江市公共就业服务机构市场职业供求状况分析 2025年二季度 填报单位：阳江市人力资源和社会保障局 表一：供求总体人数
B2: K6PTE5PB[B2] | C2: 需求人数 | D2: 求职人数 | E2: 求人倍率
A3: K6PTE5PB[A3] | B3: K6PTE5PB[B3] | C3: 人 | D3: 人 | E3: 倍
A4: 甲 | B4: 序号 | C4: 1 | D4: 2 | E4: 3
A5: 本期有效数 | B5: 1 | C5: =按产业分组的需求人数!C8 -> 9,642 | D5: =按职业分组的供求人数!E14 -> 8,928 | E5: =ROUND(C5/D5,2) -> 1.08

Sheet 按产业分组的需求人数
A1: 续表一：按产业分组的需求人数
C2: 需求人数 | D2: 所占比重
C3: 人 | D3: %
A4: 甲 | B4: 序号 | C4: 4 | D4: 5
A5: 第一产业 | B5: 3 | C5: =按行业分组的需求人数!C5-按行业分组的需求人数!C6 -> 2 | D5: =ROUND(C5*100/C8,2) -> 0.02
A6: 第二产业 | B6: 4 | C6: =按行业分组的需求人数!C7-按行业分组的需求人数!C8+按行业分组的需求人数!C9-按行业分组的需求人数!C10+按行业分组的需求人数!C11+按行业分组的需求人数!C12 -> 4,673 | D6: =ROUND(C6*100/C8,2) -> 48.47
A7: 第三产业 | B7: 5 | C7: =按行业分组的需求人数!C6+按行业分组的需求人数!C8+按行业分组的需求人数!C10+SUM(按行业分组的需求人数!C13:C27) -> 4,967 | D7: =ROUND(C7*100/C8,2) -> 51.51
A8: 合计 | C8: =C5+C6+C7 -> 9,642 | D8: =ROUND(C8*100/C8,0) -> 100

Sheet 按行业分组的需求人数
A1: 续表二：按行业分组的需求人数
C2: 需求人数 | D2: 所占比重
C3: 人 | D3: %
A4: 甲 | B4: 序号 | C4: 6 | D4: 7
A5: 农、林、牧、渔业 | B5: 7 | C5: 3 | D5: =ROUND(C5*100/$C$28,2) -> 0.03
A6: 其中，农、林、牧、渔专业及辅助性活动 | B6: 8 | C6: 1 | D6: 0.01
A7: 采矿业 | B7: 9 | C7: 0 | D7: 0.00
A8: 其中，开采专业及辅助性活动 | B8: 10 | C8: 0 | D8: 0.00
A9: 制造业 | B9: 11 | C9: 6,343 | D9: 65.79
A10: 其中，金属制品、机械和设备修理业 | B10: 12 | C10: 1,928 | D10: 20.00
A11: 电力、热力、燃气及水生产和供应业 | B11: 13 | C11: 173 | D11: 1.79
A12: 建筑业 | B12: 14 | C12: 85 | D12: 0.88
A13: 批发和零售业 | B13: 15 | C13: 247 | D13: 2.56
A14: 交通运输、仓储和邮政业 | B14: 16 | C14: 93 | D14: 0.96
A15: 住宿和餐饮业 | B15: 17 | C15: 1,342 | D15: 13.92
A16: 信息传输、软件和信息技术服务业 | B16: 18 | C16: 607 | D16: 6.30
A17: 金融业 | B17: 19 | C17: 62 | D17: 0.64
A18: 房地产业 | B18: 20 | C18: 314 | D18: 3.26
A19: 租赁和商务服务业 | B19: 21 | C19: 66 | D19: 0.68
A20: 科学研究和技术服务业 | B20: 22 | C20: 0 | D20: 0.00
A21: 水利、环境和公共设施管理业 | B21: 23 | C21: 0 | D21: 0.00
A22: 居民服务、修理和其他服务业 | B22: 24 | C22: 166 | D22: 1.72
A23: 教育 | B23: 25 | C23: 78 | D23: 0.81
A24: 卫生和社会工作 | B24: 26 | C24: 0 | D24: 0.00
A25: 文化、体育和娱乐业 | B25: 27 | C25: 63 | D25: 0.65
A26: 公共管理、社会保障和社会组织 | B26: 28 | C26: 0 | D26: 0.00
A27: 国际组织 | B27: 29 | C27: 0 | D27: 0.00
A28: 合计 | C28: =C5+C7+C9+C11+C12+C13+C14+C15+C16+C17+C18+C19+C20+C21+C22+C23+C24+C25+C26+C27 -> 9,642 | D28: =ROUND(C28/C28*100,0) -> 100

Sheet 按用人单位性质划分的需求人数
A1: 续表三：按用人单位性质划分的需求人数 | D1: 用人单位需求情况
C2: 需求人数 | D2: 所占比重
C3: 人 | D3: %
A4: 甲 | B4: 序号 | C4: 8 | D4: 9
A5: 企 业 | B5: 31 | C5: =C6+C15+C16+C17 -> 9,642 | D5: =ROUND(C5*100/$C$21,2) -> 100.00
A6: 其中： 内资企业 | B6: 32 | C6: =C7+C8+C9+C10+C11+C12+C13+C14 -> 6,649 | D6: =ROUND(C6*100/$C$5,2) -> 68.96
A7: 国有企业 | B7: 33 | C7: 20 | D7: 0.21
A8: 集体企业 | B8: 34 | C8: 0 | D8: 0.00
A9: 股份合作企业 | B9: 35 | C9: 25 | D9: 0.26
A10: 联营企业 | B10: 36 | C10: 13 | D10: 0.13
A11: 有限责任公司 | B11: 37 | C11: 4,275 | D11: 44.34
A12: 股份有限公司 | B12: 38 | C12: 784 | D12: 8.13
A13: 私营企业 | B13: 39 | C13: 1,497 | D13: 15.53
A14: 其他企业 | B14: 40 | C14: 35 | D14: 0.36
A15: 港、澳、台商投资企业 | B15: 41 | C15: 143 | D15: 1.48
A16: 外商投资企业 | B16: 42 | C16: 39 | D16: 0.40
A17: 个体经营 | B17: 43 | C17: 2,811 | D17: 29.15
A18: 事 业 | B18: 44 | C18: 0 | D18: =ROUND(C18*100/$C$21,2) -> 0.00
A19: 机 关 | B19: 45 | C19: 0 | D19: =ROUND(C19*100/$C$21,2) -> 0.00
A20: 其 他 | B20: 46 | C20: 0 | D20: =ROUND(C20*100/$C$21,2) -> 0.00
A21: 合计 | C21: =C5+C18+C19+C20 -> 9,642 | D21: =ROUND(C21*100/$C$21,0) -> 100

Sheet 按职业分组的供求人数
A1: 续表四：按职业分组的供求人数
C2: 劳动力供求人数比较
C3: 需求人数 | D3: 需求比重 | E3: 求职人数 | F3: 求职比重 | G3: 求人倍率
C4: 人 | D4: % | E4: 人 | F4: % | G4: 倍
A5: 甲 | B5: 序号 | C5: 10 | D5: 11 | E5: 12 | F5: 13 | G5: 14
A6: 单位负责人 | B6: 48 | C6: 21 | D6: =ROUND(C6*100/C14,2) -> 0.22 | E6: 25 | F6: =ROUND(E6*100/E14,2) -> 0.28 | G6: =IFERROR(ROUND(C6/(E6+$E$13*C6/$C$14),2),"-") -> 0.84
A7: 专业技术人员 | B7: 49 | C7: 865 | D7: =ROUND(C7*100/C14,2) -> 8.97 | E7: 913 | F7: =ROUND(E7*100/E14,2) -> 10.23 | G7: 0.95
A8: 办事人员和有关人员 | B8: 50 | C8: 2,385 | D8: =ROUND(C8*100/C14,2) -> 24.74 | E8: 2,773 | F8: =ROUND(E8*100/E14,2) -> 31.06 | G8: 0.86
A9: 社会生产服务和生活服务人员 | B9: 51 | C9: 2,284 | D9: =ROUND(C9*100/C14,2) -> 23.69 | E9: 2,072 | F9: =ROUND(E9*100/E14,2) -> 23.21 | G9: 1.10
A10: 农林牧渔业生产及辅助人员 | B10: 52 | C10: 2 | D10: =ROUND(C10*100/C14,2) -> 0.02 | E10: 4 | F10: =ROUND(E10*100/E14,2) -> 0.04 | G10: 0.50
A11: 生产制造及有关人员 | B11: 53 | C11: 2,188 | D11: =ROUND(C11*100/C14,2) -> 22.69 | E11: 1,798 | F11: =ROUND(E11*100/E14,2) -> 20.14 | G11: 1.22
A12: 其他 | B12: 54 | C12: 1,897 | D12: =ROUND(C12*100/C14,2) -> 19.67 | E12: 1,343 | F12: =ROUND(E12*100/E14,2) -> 15.04 | G12: 1.41
A13: 无要求 | B13: 55 | C13: —— | D13: —— | E13: 0 | F13: =ROUND(E13*100/$E$14,2) -> 0.00 | G13: ——
A14: 合计 | C14: =C6+C7+C8+C9+C10+C11+C12 -> 9,642 | D14: =ROUND(C14*100/C14,0) -> 100 | E14: =E6+E7+E8+E9+E10+E11+E12+E13 -> 8,928 | F14: =ROUND(E14*100/$E$14,0) -> 100 | G14: ——

Sheet 需求大于求职缺口最大的前二十个职业情况
A1: 续表五：需求大于求职缺口最大的前二十个职业情况(职业细类)
A2: 项 目 | B2: 代码 | C2: 职业代码 | D2: 需求大于求职缺口最大的前二十个职业（职业细类）
D3: 需求人数 | E3: 求职人数 | F3: 缺口数 | G3: 求人倍率
A4: 甲 | B4: 乙 | C4: 15 | D4: 16 | E4: 17 | F4: 18 | G4: 19
A5: 家政服务员 | B5: 56 | C5: 4-10-01-06 | D5: 112 | E5: 54 | F5: =D5-E5 -> 58 | G5: =IFERROR(ROUND(D5/E5,2),"-") -> 2.07
A6: 快递员 | B6: 57 | C6: 4-02-07-08 | D6: 214 | E6: 175 | F6: =D6-E6 -> 39 | G6: 1.22
A7: 餐厅服务员 | B7: 58 | C7: 4-03-02-05 | D7: 261 | E7: 221 | F7: 40 | G7: 1.18
A8: 中式烹调师 | B8: 59 | C8: 4-03-02-01 | D8: 7 | E8: 3 | F8: 4 | G8: 2.33
A9: 企业经理 | B9: 60 | C9: 1-06-01-02 | D9: 3 | E9: 1 | F9: 2 | G9: 3.00
A10: 前厅服务员 | B10: 61 | C10: 4-03-01-01 | D10: 2 | E10: 1 | F10: 1 | G10: 2.00
A11: 电工 | B11: 62 | C11: 6-31-01-03 | D11: 2 | E11: 1 | F11: 1 | G11: 2.00
A12: 物业管理师 | B12: 63 | C12: 4-06-01-01 | D12: 4 | E12: 3 | F12: 1 | G12: 1.33
A13: 营销员 | B13: 64 | C13: 4-01-02-01 | D13: 1,030 | E13: 355 | F13: 675 | G13: 2.90
A14: 保安员 | B14: 65 | C14: 4-07-05-01 | D14: 9 | E14: 3 | F14: 6 | G14: 3.00
B15: 66 | F15: 0 | G15: -
B16: 67 | F16: 0 | G16: -
B17: 68 | F17: 0 | G17: -
B18: 69 | F18: 0 | G18: -
B19: 70 | F19: 0 | G19: =IFERROR(ROUND(D19/E19,2),"-") -> -
B20: 71 | F20: 0 | G20: -
B21: 72 | F21: 0 | G21: -
B22: 73 | F22: 0 | G22: -
B23: 74 | F23: 0 | G23: -
B24: 75 | F24: 0 | G24: -

Sheet 需求小于求职缺口最大的前二十个职业情况
A1: 续表六：需求小于求职缺口最大的前二十个职业（职业细类）
A2: 项 目 | B2: 代码 | C2: 职业代码 | D2: 需求小于求职缺口最大的前二十个职业（职业细类）
D3: 需求人数 | E3: 求职人数 | F3: 缺口数 | G3: 求人倍率
A4: 甲 | B4: 乙 | C4: 20 | D4: 21 | E4: 22 | F4: 23 | G4: 24
A5: 包装工 | B5: 76 | C5: 6-31-05-00 | D5: 161 | E5: 358 | F5: =E5-D5 -> 197 | G5: =IFERROR(ROUND(D5/E5,2),"-") -> 0.45
A6: 保洁员 | B6: 77 | C6: 4-09-08-01 | D6: 401 | E6: 635 | F6: =E6-D6 -> 234 | G6: 0.63
A7: 机电设备维修工 | B7: 78 | C7: 6-31-01-10 | D7: 2 | E7: 4 | F7: 2 | G7: 0.50
A8: 会计专业人员 | B8: 79 | C8: 2-06-03-00 | D8: 3 | E8: 5 | F8: 2 | G8: 0.60
A9: 幼儿园教师 | B9: 80 | C9: 2-08-03-00 | D9: 0 | E9: 2 | F9: 2 | G9: 0.00
A10: 收银员 | B10: 81 | C10: 4-01-02-04 | D10: 36 | E10: 99 | F10: 63 | G10: 0.36
A11: 全媒体运营师 | B11: 82 | C11: 4-13-01-05 | D11: 2 | E11: 4 | F11: 2 | G11: 0.50
A12: 美发师 | B12: 83 | C12: 4-10-03-02 | D12: 2 | E12: 5 | F12: 3 | G12: 0.40
A13: 水泥生产工 | B13: 84 | C13: 6-15-01-01 | D13: 3 | E13: 5 | F13: 2 | G13: 0.60
A14: 小学教师 | B14: 85 | C14: 2-08-02-04 | D14: 3 | E14: 5 | F14: 2 | G14: 0.60
A15: 行政执法员 | B15: 86 | C15: 3-01-03-01 | D15: 3 | E15: 5 | F15: 2 | G15: 0.60
A16: 保安员 | B16: 87 | C16: 4-07-05-01 | D16: 104 | E16: 742 | F16: 638 | G16: 0.14
A17: 房地产经纪人 | B17: 88 | C17: 4-06-02-01 | D17: 78 | E17: 182 | F17: 104 | G17: 0.43
B18: 89 | F18: 0 | G18: -
B19: 90 | F19: 0 | G19: -
B20: 91 | F20: 0 | G20: -
B21: 92 | F21: 0 | G21: -
B22: 93 | F22: 0 | G22: -
B23: 94 | F23: 0 | G23: -
B24: 95 | F24: 0 | G24: -

Sheet 按求职人员类别分组的求职人数
A1: 续表七：按求职人员类别分组的求职人数
C2: 求职人数 | D2: 求职比重（%）
C3: 人 | D3: %
A4: 甲 | B4: 序号 | C4: 25 | D4: 26
A5: 新成长失业青年 | B5: 97 | C5: 1,420 | D5: =IFERROR(ROUND(C5*100/$C$13,2),"-") -> 15.91
A6: 其中：应届高校毕业生 | B6: 98 | C6: 257 | D6: =IFERROR(ROUND(C6*100/$C$5,2),"-") -> 18.10
A7: 失业人员 | B7: 99 | C7: 804 | D7: 9.01
A8: 在业人员 | B8: 100 | C8: 1,083 | D8: =IFERROR(ROUND(C8*100/C13,2),"-") -> 12.13
A9: 退休人员 | B9: 101 | C9: 89 | D9: =IFERROR(ROUND(C9*100/C13,2),"-") -> 1.00
A10: 在学人员 | B10: 102 | C10: 1,259 | D10: =IFERROR(ROUND(C10*100/C13,2),"-") -> 14.10
A11: 本市农村求职人员 | B11: 103 | C11: 4,253 | D11: =IFERROR(ROUND(C11*100/C13,2),"-") -> 47.64
A12: 外地户籍求职人员 | B12: 104 | C12: 20 | D12: =IFERROR(ROUND(C12*100/$C$13,2),"-") -> 0.22
A13: 合计 | C13: =C5+C7+C8+C9+C10+C11+C12 -> 8,928 | D13: =IFERROR(ROUND(C13*100/$C$13,2),"-") -> 100

Sheet 按性别分组的供求人数
A1: 续表八：按性别分组的供求人数
C2: 劳动力供求人数比较
C3: 求职人数 | D3: 求职比重
C4: 人 | D4: %
A5: 甲 | B5: 序号 | C5: 29 | D5: 30
A6: 男 | B6: 106 | C6: 5,133 | D6: =IFERROR(ROUND(C6*100/$C$8,2),"-") -> 57.49
A7: 女 | B7: 107 | C7: 3,795 | D7: 42.51
A8: 合计 | C8: =C6+C7 -> 8,928 | D8: 100.00

Sheet 按年龄分组的供求人数
A1: 续表九：按年龄分组的供求人数
C2: 劳动力供求人数比较
C3: 需求人数 | D3: 需求比重 | E3: 求职人数 | F3: 求职比重 | G3: 求人倍率
C4: 人 | D4: % | E4: 人 | F4: % | G4: 倍
A5: 甲 | B5: 序号 | C5: 32 | D5: 33 | E5: 34 | F5: 35 | G5: 36
A6: 16-24岁 | B6: 110 | C6: 2,988 | D6: =IFERROR(ROUND(C6*100/$C$11,2),"-") -> 30.99 | E6: 3,594 | F6: =IFERROR(ROUND(E6*100/$E$11,2),"-") -> 40.26 | G6: =IFERROR(ROUND((C6+$C$10*E6/E11)/E6,2),"-") -> 1.00
A7: 25-34岁 | B7: 111 | C7: 2,602 | D7: 26.99 | E7: 2,496 | F7: 27.96 | G7: =IFERROR(ROUND((C7+C10*F7/100)/E7,2),"-") -> 1.21
A8: 35-44岁 | B8: 112 | C8: 1,562 | D8: 16.20 | E8: 1,606 | F8: 17.99 | G8: =IFERROR(ROUND((C8+C10*F8/100)/E8,2),"-") -> 1.14
A9: 45岁以上 | B9: 113 | C9: 983 | D9: 10.19 | E9: 1,232 | F9: 13.80 | G9: =IFERROR(ROUND((C9+C10*F9/100)/E9,2),"-") -> 0.97
A10: 无要求 | B10: 114 | C10: 1,507 | D10: 15.63 | E10: —— | F10: —— | G10: ——
A11: 合计 | C11: =C6+C7+C8+C9+C10 -> 9,642 | D11: 100 | E11: =E6+E7+E8+E9 -> 8,928 | F11: 100 | G11: =IFERROR(ROUND(C11/E11,2),"-") -> 1.08

Sheet 按文化程度分组的供求人数
A1: 续表十:按文化程度分组的供求人数
C2: 劳动力供求人数比较
C3: 需求人数 | D3: 需求比重 | E3: 求职人数 | F3: 求职比重 | G3: 求人倍率
C4: 人 | D4: % | E4: 人 | F4: % | G4: 倍
A5: 甲 | B5: 序号 | C5: 37 | D5: 38 | E5: 39 | F5: 40 | G5: 41
A6: 初中及以下 | B6: 116 | C6: 2,055 | D6: =IFERROR(ROUND(C6*100/$C$13,2),"-") -> 21.31 | E6: 2,305 | F6: =IFERROR(ROUND(E6*100/$E$13,2),"-") -> 25.82 | G6: =IFERROR(ROUND((C6+$C$12*E6/$E$13)/E6,2),"-") -> 1.01
A7: 高中 | B7: 117 | C7: 3,157 | D7: 32.74 | E7: 3,092 | F7: 34.63 | G7: 1.14
A8: 其中：职高、技校、中专 | B8: 118 | C8: 1,157 | D8: =IFERROR(ROUND(C8*100/$C$7,2),"-") -> 36.65 | E8: 1,161 | F8: =IFERROR(ROUND(E8*100/$E$7,2),"-") -> 37.55 | G8: =IFERROR(ROUND((C12*E7/E13+C7)*C8/C7/E8,2),"-") -> 1.11
A9: 大专 | B9: 119 | C9: 2,751 | D9: 28.53 | E9: 2,945 | F9: 32.99 | G9: 1.05
A10: 大学 | B10: 120 | C10: 644 | D10: 6.68 | E10: 583 | F10: 6.53 | G10: 1.22
A11: 硕士以上 | B11: 121 | C11: 5 | D11: 0.05 | E11: 3 | F11: 0.03 | G11: 1.78
A12: 无要求 | B12: 122 | C12: 1,030 | D12: 10.68 | E12: —— | F12: —— | G12: ——
A13: 合计 | C13: =C6+C7+C9+C10+C11+C12 -> 9,642 | D13: =(SUM(C6:C12)-C8)/C13*100 -> 100 | E13: =E6+E7+E9+E10+E11 -> 8,928 | F13: =(SUM(E6:E12)-E8)/E13*100 -> 100 | G13: ——

Sheet 按技术等级分组的供求人数
A1: 续表十一：按技术等级分组的供求人数
C2: 劳动力供求人数比较
C3: 需求人数 | D3: 需求比重 | E3: 求职人数 | F3: 求职比重 | G3: 求人倍率
C4: 人 | D4: % | E4: 人 | F4: % | G4: 倍
A5: 甲 | B5: 序号 | C5: 42 | D5: 43 | E5: 44 | F5: 45 | G5: 46
A6: 职业资格五级(初级技能) | B6: 124 | C6: 674 | D6: =IFERROR(ROUND(C6*100/C16,2),"-") -> 6.99 | E6: 562 | F6: =IFERROR(ROUND(E6*100/E16,2),"-") -> 6.29 | G6: =IFERROR((C6+$C$15*E6/$E$16)/E6,"-") -> 2.08
A7: 职业资格四级(中级技能) | B7: 125 | C7: 384 | D7: =IFERROR(ROUND(C7*100/C16,2),"-") -> 3.98 | E7: 261 | F7: =IFERROR(ROUND(E7*100/E16,2),"-") -> 2.92 | G7: 2.35
A8: 职业资格三级(高级技能) | B8: 126 | C8: 9 | D8: =IFERROR(ROUND(C8*100/C16,2),"-") -> 0.09 | E8: 6 | F8: =IFERROR(ROUND(E8*100/E16,2),"-") -> 0.07 | G8: 2.38
A9: 职业资格二级(技师) | B9: 127 | C9: 5 | D9: =IFERROR(ROUND(C9*100/C16,2),"-") -> 0.05 | E9: 2 | F9: =IFERROR(ROUND(E9*100/E16,2),"-") -> 0.02 | G9: 3.38
A10: 职业资格一级(高级技师) | B10: 128 | C10: 8 | D10: =IFERROR(ROUND(C10*100/C16,2),"-") -> 0.08 | E10: 4 | F10: =IFERROR(ROUND(E10*100/E16,2),"-") -> 0.04 | G10: 2.88
A11: 初级职称 | B11: 129 | C11: 680 | D11: =IFERROR(ROUND(C11*100/C16,2),"-") -> 7.05 | E11: 569 | F11: =IFERROR(ROUND(E11*100/E16,2),"-") -> 6.37 | G11: 2.08
A12: 中级职称 | B12: 130 | C12: 18 | D12: =IFERROR(ROUND(C12*100/C16,2),"-") -> 0.19 | E12: 14 | F12: =IFERROR(ROUND(E12*100/E16,2),"-") -> 0.16 | G12: 2.17
A13: 高级职称 | B13: 131 | C13: 4 | D13: =IFERROR(ROUND(C13*100/C16,2),"-") -> 0.04 | E13: 2 | F13: =IFERROR(ROUND(E13*100/E16,2),"-") -> 0.02 | G13: 2.88
A14: 无技术等级或职称 | B14: 132 | C14: —— | D14: —— | E14: 7,508 | F14: =IFERROR(ROUND(E14*100/E16,2),"-") -> 84.09 | G14: =IFERROR(($C$15*E14/$E$16)/E14,"-") -> 0.88
A15: 无要求 | B15: 133 | C15: 7,860 | D15: =IFERROR(ROUND(C15*100/$C$16,2),"-") -> 81.52 | E15: —— | F15: —— | G15: ——
A16: 合计 | C16: =C6+C7+C8+C9+C10+C11+C12+C13+C15 -> 9,642 | D16: =ROUND(C16*100/$C$16,2) -> 100 | E16: =E6+E7+E8+E9+E10+E11+E12+E13+E14 -> 8,928 | F16: =ROUND(E16*100/E16,2) -> 100 | G16: ——

Sheet 版本 (hidden)
A1: V1.1
